Department Family,Entity,Date,Expense Type,Expense Area,Supplier,Transaction Number,AP Amount,VAT Registration Number,Purchase Invoice Number
Department of Health,Bridgewater Community Healthcare NHS Foundation Trust,31-Mar-20,Continence Products,Continence Adult - Warrington,ESSITY UK LTD,33618988,"54,040.49",GB 600 4331 06,6401613710
Department of Health,Bridgewater Community Healthcare NHS Foundation Trust,31-Mar-20,SrvcsRecd-FoundationTrust,Offender Health - Barton Moss,GREATER MANCHESTER WEST MENTAL HEALTH NHS FOUNDATION TRUST,33618991,"27,746.25",654929594,0000036888
Department of Health,Bridgewater Community Healthcare NHS Foundation Trust,31-Mar-20,SrvcsRecd-FoundationTrust,Offender Health - Risley,GREATER MANCHESTER WEST MENTAL HEALTH NHS FOUNDATION TRUST,33618991,"61,506.84",654929594,0000036888
Department of Health,Bridgewater Community Healthcare NHS Foundation Trust,31-Mar-20,SrvcsRecd-FoundationTrust,Offender Health - St Catherines,GREATER MANCHESTER WEST MENTAL HEALTH NHS FOUNDATION TRUST,33618991,"38,375.33",654929594,0000036888
Department of Health,Bridgewater Community Healthcare NHS Foundation Trust,31-Mar-20,SrvcsRecd-FoundationTrust,Offender Health HM Prison Healthcare (Hindley),GREATER MANCHESTER WEST MENTAL HEALTH NHS FOUNDATION TRUST,33618991,"86,655.58",654929594,0000036888
Department of Health,Bridgewater Community Healthcare NHS Foundation Trust,31-Mar-20,External Consultancy Fees,Computing,PHOENIX PARTNERSHIP (LEEDS) LTD,33657384,"127,830.51",721671841,10744
Department of Health,Bridgewater Community Healthcare NHS Foundation Trust,31-Mar-20,CompSwrPrch Additions,Balance Sheet,INSIGHT DIRECT (UK) LTD,33670504,"43,260.00",746075129,4739565
Department of Health,Bridgewater Community Healthcare NHS Foundation Trust,31-Mar-20,Income tax - Current,Balance Sheet,INLAND REVENUE CIS,33685500,"519,993.18",,083PK002342082011
Department of Health,Bridgewater Community Healthcare NHS Foundation Trust,31-Mar-20,National Insurance - Curr,Balance Sheet,INLAND REVENUE CIS,33685500,"755,891.34",,083PK002342082011
Department of Health,Bridgewater Community Healthcare NHS Foundation Trust,31-Mar-20,CompSwrPrch Additions,Balance Sheet,SOFTCAT PLC,33701135,"60,309.00",GB491848503,INV02520472
Department of Health,Bridgewater Community Healthcare NHS Foundation Trust,31-Mar-20,Mobile Phones,Computing,VODAFONE LTD,33740725,"40,846.98",GB 569 9532 77,94016413
Department of Health,Bridgewater Community Healthcare NHS Foundation Trust,31-Mar-20,Computer Software/License,Computing,SOFTWARE BOX LTD,33740915,"27,132.00",734245248,INV0108538
Department of Health,Bridgewater Community Healthcare NHS Foundation Trust,31-Mar-20,Lease Rents,Lowe House,COMMUNITY HEALTH PARTNERSHIPS LTD,33765144,"32,064.52",GB782562113,0060088116
Department of Health,Bridgewater Community Healthcare NHS Foundation Trust,31-Mar-20,Lease Rents,Chandler House,COMMUNITY HEALTH PARTNERSHIPS LTD,33765152,"51,166.12",GB782562113,0060101610
Department of Health,Bridgewater Community Healthcare NHS Foundation Trust,31-Mar-20,Lease Rents,Claire House,COMMUNITY HEALTH PARTNERSHIPS LTD,33765152,"33,482.59",GB782562113,0060101610
Department of Health,Bridgewater Community Healthcare NHS Foundation Trust,31-Mar-20,Lease Rents,Leigh Health Centre,COMMUNITY HEALTH PARTNERSHIPS LTD,33765152,"87,372.74",GB782562113,0060101610
Department of Health,Bridgewater Community Healthcare NHS Foundation Trust,31-Mar-20,Lease Rents,Platt Bridge,COMMUNITY HEALTH PARTNERSHIPS LTD,33765152,"68,420.73",GB782562113,0060101610
Department of Health,Bridgewater Community Healthcare NHS Foundation Trust,31-Mar-20,Lease Rents,Wigan Health Centre - Boston House,COMMUNITY HEALTH PARTNERSHIPS LTD,33765152,"67,679.65",GB782562113,0060101610
Department of Health,Bridgewater Community Healthcare NHS Foundation Trust,31-Mar-20,Lease Rents,Bath Street,COMMUNITY HEALTH PARTNERSHIPS LTD,33765174,"62,138.84",GB782562113,0060123797
Department of Health,Bridgewater Community Healthcare NHS Foundation Trust,31-Mar-20,Lease Rents,Child Development Centre Orford,COMMUNITY HEALTH PARTNERSHIPS LTD,33765174,"47,880.77",GB782562113,0060123797
Department of Health,Bridgewater Community Healthcare NHS Foundation Trust,31-Mar-20,Lease Rents,Bath Street,COMMUNITY HEALTH PARTNERSHIPS LTD,33765177,"62,138.84",GB782562113,0060128282
Department of Health,Bridgewater Community Healthcare NHS Foundation Trust,31-Mar-20,Lease Rents,Child Development Centre Orford,COMMUNITY HEALTH PARTNERSHIPS LTD,33765177,"47,880.77",GB782562113,0060128282
Department of Health,Bridgewater Community Healthcare NHS Foundation Trust,31-Mar-20,Lease Rents,Bath Street,COMMUNITY HEALTH PARTNERSHIPS LTD,33765184,"62,138.84",GB782562113,0060131646
Department of Health,Bridgewater Community Healthcare NHS Foundation Trust,31-Mar-20,Lease Rents,Child Development Centre Orford,COMMUNITY HEALTH PARTNERSHIPS LTD,33765184,"47,880.77",GB782562113,0060131646
Department of Health,Bridgewater Community Healthcare NHS Foundation Trust,31-Mar-20,Lease Rents,Bath Street,COMMUNITY HEALTH PARTNERSHIPS LTD,33765190,"62,138.84",GB782562113,0060136449
Department of Health,Bridgewater Community Healthcare NHS Foundation Trust,31-Mar-20,Lease Rents,Child Development Centre Orford,COMMUNITY HEALTH PARTNERSHIPS LTD,33765190,"47,880.77",GB782562113,0060136449
Department of Health,Bridgewater Community Healthcare NHS Foundation Trust,31-Mar-20,Lease Rents,Castlefields,COMMUNITY HEALTH PARTNERSHIPS LTD,33765192,"100,619.11",GB782562113,0060140207
Department of Health,Bridgewater Community Healthcare NHS Foundation Trust,31-Mar-20,Lease Rents,Bath Street,COMMUNITY HEALTH PARTNERSHIPS LTD,33765195,"46,353.94",GB782562113,0060140359
Department of Health,Bridgewater Community Healthcare NHS Foundation Trust,31-Mar-20,Lease Rents,Child Development Centre Orford,COMMUNITY HEALTH PARTNERSHIPS LTD,33765195,"47,880.67",GB782562113,0060140359
Department of Health,Bridgewater Community Healthcare NHS Foundation Trust,31-Mar-20,Lease Rents,Bath Street,COMMUNITY HEALTH PARTNERSHIPS LTD,33765241,"46,353.84",GB782562113,0060143958
Department of Health,Bridgewater Community Healthcare NHS Foundation Trust,31-Mar-20,Lease Rents,Child Development Centre Orford,COMMUNITY HEALTH PARTNERSHIPS LTD,33765241,"47,880.77",GB782562113,0060143958
Department of Health,Bridgewater Community Healthcare NHS Foundation Trust,31-Mar-20,Lease Rents,Widnes HCRC,COMMUNITY HEALTH PARTNERSHIPS LTD,33765242,"77,310.35",GB782562113,0060143932
Department of Health,Bridgewater Community Healthcare NHS Foundation Trust,31-Mar-20,SrvcsRecd-FoundationTrust,Crompton Imms Team - Bolton,ROYAL BOLTON HOSPITAL NHS FOUNDATION TRUST,33797124,"81,710.00",654913421,0001056689
Department of Health,Bridgewater Community Healthcare NHS Foundation Trust,31-Mar-20,Contr Photocopier Rental,Admin Support General Management,LEXMARK INTERNATIONAL LTD,33826457,"28,310.11",,900650007403
Department of Health,Bridgewater Community Healthcare NHS Foundation Trust,31-Mar-20,SrvcsRecd-FoundationTrust,Offender Health - Wymott,NATIONAL OFFENDER MANAGEMENT SERVICE,33834668,"47,836.74",GB888 8180 55,2209600
Department of Health,Bridgewater Community Healthcare NHS Foundation Trust,31-Mar-20,SrvcsRecd-FoundationTrust,Offender Health - Wymott,NATIONAL OFFENDER MANAGEMENT SERVICE,33834679,"26,853.71",GB888 8180 55,2216519
Department of Health,Bridgewater Community Healthcare NHS Foundation Trust,31-Mar-20,SrvcsRecd-FoundationTrust,Offender Health - Wymott,NATIONAL OFFENDER MANAGEMENT SERVICE,33834682,"31,542.68",GB888 8180 55,2216516
Department of Health,Bridgewater Community Healthcare NHS Foundation Trust,31-Mar-20,SrvcsRecd-FoundationTrust,Offender Health - Wymott,NATIONAL OFFENDER MANAGEMENT SERVICE,33834689,"25,631.62",GB888 8180 55,2216518
Department of Health,Bridgewater Community Healthcare NHS Foundation Trust,31-Mar-20,Continence Products,Continence Adult - Warrington,ESSITY UK LTD,33834693,"43,447.37",GB 600 4331 06,6401623809
Department of Health,Bridgewater Community Healthcare NHS Foundation Trust,31-Mar-20,Continence Products,Continence Adult Halton,ESSITY UK LTD,33834696,"27,732.23",GB 600 4331 06,6401623814
Department of Health,Bridgewater Community Healthcare NHS Foundation Trust,31-Mar-20,Rates,Warrington Wolves,WARRINGTON BOROUGH COUNCIL,33837756,"48,128.00",152847160,1025462974305032048128
Department of Health,Bridgewater Community Healthcare NHS Foundation Trust,31-Mar-20,Rates,89 Spencer House,WARRINGTON BOROUGH COUNCIL,33837786,"42,752.00",152847160,1025579564505032042752
Department of Health,Bridgewater Community Healthcare NHS Foundation Trust,31-Mar-20,Rates,Europa Point,WARRINGTON BOROUGH COUNCIL,33837792,"87,552.00",152847160,1026698604205032087552
Department of Health,Bridgewater Community Healthcare NHS Foundation Trust,31-Mar-20,Rent,Warrington Wolves,WARRINGTON FC LTD,33853971,"31,350.00",152685258,23251
Department of Health,Bridgewater Community Healthcare NHS Foundation Trust,31-Mar-20,Services Received - CCG's,Computing,NHS OLDHAM CCG,33886350,"137,312.00",,7011707451
